Cogmind - Beta 13 @@@ ROGUE MODE // 2024.03.10 @ 22:07:50 Player: rCartos Result: Destroyed by S-10 Pest with Light Assault Rifle Performance ------------- Evolutions (2) 1000 Regions Visited (3) 600 Robots Destroyed (32) 160 Value Destroyed (819) 819 Prototype IDs (1) 20 Alien Tech Used (0) 0 Bonus (43) 43 TOTAL SCORE: 2642 Bonus ------- High Alert Combat Kills 43 Cogmind --------- Core Integrity 0/550 Matter 224/300 Energy 84/100 System Corruption 0% Temperature Cool (1) Movement Flying (40) Location -8/Materials Parts ------- > --- POWER (2) -------- (None) > --- PROPULSION (2) --- Improved Flight Unit > --- UTILITY (3) ------ (None) > --- WEAPON (4) ------- (None) > --- INVENTORY (5) ---- Ion Engine Small Storage Unit Peak State ------------ > --- POWER ------------ Ion Engine Improved Ion Engine > --- PROPULSION ------- Wheel Compact Wheel > --- UTILITY ---------- Heat Sink Large Storage Unit Improved Terrain Scanner > --- WEAPON ----------- Heavy Particle Cannon Heavy Particle Cannon Autogun Mini Grenade Launcher > --- INVENTORY -------- Light Ion Engine Wheel Compact Wheel Small Storage Unit Small Storage Unit EM Shotgun Heavy Particle Cannon Heavy Particle Cannon Improved Light Cannon Improved Light Cannon Grenade Launcher [Rating: 21] Favorites ----------- Power Ion Engine Engine Ion Engine Propulsion Compact Wheel Wheel Compact Wheel Flight Unit Xenon Bombardment Thruster Utility Small Storage Unit Device Improved Terrain Scanner Storage Small Storage Unit Processor Terrain Scan Processor Weapon Light Assault Rifle Energy Gun Small Laser Energy Cannon Heavy Particle Cannon Ballistic Gun Light Assault Rifle Launcher Grenade Launcher Build | -11 -10 -9 -8 ------- Run | Yrd Mat Mat Mat Slots Evolved 4 | . . 2 2 Power 1 | . . . 1 Propulsion . | . . . . Utility 1 | . . . 1 Weapon 2 | . . 2 . Parts Attached 38 | 7 4 15 12 Power 8 | 1 1 3 3 Engine 8 | 1 1 3 3 Core . | . . . . Reactor . | . . . . Propulsion 10 | 2 . 3 5 Treads . | . . . . Leg . | . . . . Wheel 5 | 2 . 3 . Hover . | . . . . Flight 5 | . . . 5 Utility 7 | 2 . 3 2 Device 4 | 1 . 1 2 Storage 2 | 1 . 1 . Processor 1 | . . 1 . Hackware . | . . . . Protection . | . . . . Artifact . | . . . . Weapon 13 | 2 3 6 2 Energy Gun 4 | 1 1 2 . Energy Cannon 4 | . . 2 2 Ballistic Gun 2 | 1 . 1 . Ballistic Cannon . | . . . . Launcher 3 | . 2 1 . Special Weapon . | . . . . Impact Weapon . | . . . . Slashing Weapon . | . . . . Piercing Weapon . | . . . . Special Melee Weapon . | . . . . Unidentified Prototypes 1 | . . . 1 Parts Lost 14 | . 1 5 8 Power 2 | . . 1 1 Propulsion 5 | . . 1 4 Utility 1 | . . . 1 Weapon 6 | . 1 3 2 Highest Loss Streak 5 | . 1 2 5 To Critical Strikes . | . . . . Average Slot Usage (%) 83 | . 100 98 37 Engine 10 | . 14 11 7 Wheel 18 | . 28 21 1 Flight 3 | . . . 11 Device 8 | . 14 4 11 Storage 9 | . 14 11 1 Processor 3 | . . 6 . Energy Gun 10 | . 12 13 . Energy Cannon 2 | . . 3 3 Ballistic Gun 11 | . 14 14 . Launcher 5 | . 1 11 . Naked Turns . | . . . . Heaviest Build 50 | 14 15 44 50 Greatest Support 32 | 32 32 32 26 Greatest Overweight (x) 11 | . . 2 11 Average Overweight (x) . | . . . . Largest Inventory Capacity 15 | 8 8 15 15 Average Capacity 9 | 7 8 12 6 Most Carried 13 | 6 8 13 12 Average Carried 6 | 2 7 8 5 Final Capacity 15 | 8 8 15 5 Final Carried 13 | 6 7 13 2 Class Distribution -------------------- 57% | Mutant 30% | Gunner 11% | Skirmisher Dominant Class ---------------- Mutant | -10/Materials Gunner | -9/Materials Mutant | -8/Materials Resources | -11 -10 -9 -8 ----------- Run | Yrd Mat Mat Mat Matter Collected 844 | 269 59 291 225 Remotely . | . . . . Salvage Created 888 | 72 186 590 40 Parts 65 | 5 17 37 6 Haulers Intercepted 1 | . . 1 . Recyclers Shooed 2 | . . 2 . Parts Field Recycled . | . . . . Retrieved Matter . | . . . . Parts Self-Destructed . | . . . . Prevented . | . . . . Kills | -11 -10 -9 -8 ------- Run | Yrd Mat Mat Mat Combat Hostiles Destroyed 22 | . 8 11 3 Guns 5 | . 4 1 . Cannons 4 | . . 1 3 AOE 13 | . 4 9 . Classes Destroyed 11 | 2 2 7 . Worker 2 | . . 2 . Builder 1 | . . 1 . Tunneler 1 | 1 . . . Hauler 1 | . . 1 . Recycler 3 | 1 . 2 . Watcher 2 | . . 2 . Swarmer 6 | . 3 . 3 Grunt 10 | . 5 5 . Brawler 1 | . . 1 . Duelist 1 | . . 1 . Sentry 4 | . . 4 . Best Kill Streak 7 | 2 4 7 3 Combat Bots Only 4 | . 4 4 3 Max Kills in Single Turn 3 | 1 3 2 1 Gunslinging . | . . . . Exploded 3 | . 3 1 . Melee . | . . . . Uniques/NPCs Destroyed . | . . . . Combat | -11 -10 -9 -8 -------- Run | Yrd Mat Mat Mat Hostile Shots Fired 238 | . 46 30 162 Missed 77 | . 8 6 63 Damage Taken 1876 | . 397 428 1051 Core 747 | . 133 59 555 Absorbed by Shields . | . . . . Core Remaining (%) 77 | 100 46 85 . Volleys Fired 60 | 9 20 28 3 Largest 4 | 2 2 4 2 Hottest 203 | 70 70 203 150 Shots Fired 161 | 18 38 99 6 Gun 127 | 18 36 73 . Cannon 8 | . . 2 6 Launcher 26 | . 2 24 . Special . | . . . . Kinetic 67 | 9 20 38 . Thermal 59 | 9 16 28 6 Explosive 26 | . 2 24 . Electromagnetic 9 | . . 9 . Robot Hit Streak 12 | 5 7 12 2 Robot Miss Streak 7 | 3 2 7 1 Penetration Max . | . . . . Secondary Targets 1 | . 1 . . Max Gunslinging Chain 1 | . 1 . . Shots Hit Robots 96 | 12 26 55 3 Core Hits 56 | 4 13 36 3 Critical Kills . | . . . . Critical Parts Destroyed . | . . . . Critical Strikes 1 | . 1 . . Burn 1 | . 1 . . Melee Attacks . | . . . . Impact . | . . . . Slashing . | . . . . Piercing . | . . . . Sneak Attacks . | . . . . Combat Hostiles . | . . . . Follow-up Attacks . | . . . . Damage Inflicted 2211 | 122 439 1575 75 Guns 900 | 122 280 498 . Cannons 125 | . . 50 75 Explosions 1169 | . 153 1016 . Melee . | . . . . Ramming 17 | . 6 11 . Kinetic 396 | 61 102 233 . Thermal 525 | 61 178 211 75 Explosive 1144 | . 153 991 . Electromagnetic 129 | . . 129 . Impact . | . . . . Slashing . | . . . . Piercing . | . . . . Highest Corruption 1 | . . 1 . Average Corruption 1 | . . 1 . Corruption Purged . | . . . . Corruption Blocked . | . . . . Effects 2 | . . 2 . Heat Flow Errors 1 | . . 1 . Energy Discharges 1 | . . 1 . Overload Shots . | . . . . Overflow Damage 8 | . . 8 . Projectiles . | . . . . Explosions 8 | . . 8 . Melee . | . . . . Knockbacks . | . . . . Impact . | . . . . Kinetic . | . . . . Secondary . | . . . . Self-Inflicted Damage 136 | . 3 133 . Shots 5 | . . 5 . Rammed 5 | . 4 1 . Targets Rammed 5 | . 4 1 . Kicked . | . . . . Crushed . | . . . . Highest Temperature 353 | 80 124 353 123 Average Temperature 93 | 33 46 131 49 Received Heat Transfer 489 | . 120 153 216 Effects 2 | . . 2 . Shutdowns 1 | . . 1 . Damage (minor) 1 | . . 1 . Siege Activations . | . . . . Robots Corrupted . | . . . . Combat Hostiles . | . . . . Parts Fried 1 | . . 1 . Impact Corruptions . | . . . . Robots Melted . | . . . . Combat Hostiles . | . . . . Parts Melted . | . . . . Heat Transferred 1337 | 185 592 449 111 Parts Sabotaged . | . . . . Parts Stolen . | . . . . Parts Stripped . | . . . . Power Chain Reactions 1 | . . 1 . Alert | -11 -10 -9 -8 ------- Run | Yrd Mat Mat Mat Peak Influence 575 | 10 244 575 420 Initial 193 | . 6 102 193 Average 215 | 3 89 302 242 Maximum Alert Level 2 | . 1 2 2 Low Security (%) 46 | 100 95 25 24 Level 1 38 | . 4 45 69 Level 2 14 | . . 29 5 Level 3 . | . . . . Level 4 . | . . . . Level 5 . | . . . . High Security . | . . . . Max Security . | . . . . Squads Dispatched 6 | . 2 1 3 Investigation 5 | . 2 . 3 Extermination . | . . . . Reinforcement 1 | . . 1 . Assault . | . . . . Garrison . | . . . . Intercept . | . . . . Searches Triggered . | . . . . Construction Impeded 1 | . . 1 . Haulers Reinforced . | . . . . Active Scanning Responses . | . . . . Cargo Convoy Interrupts . | . . . . Stealth | -11 -10 -9 -8 --------- Run | Yrd Mat Mat Mat Distress Signals 2 | . . . 2 Communications Jammed . | . . . . Distress Signals . | . . . . Times Spotted 51 | . 10 13 28 Peak Tracking Total 21 | . 3 4 21 Tactical Retreats 6 | . . 1 5 Traps | -11 -10 -9 -8 ------- Run | Yrd Mat Mat Mat Traps Triggered 1 | . 1 . . Indirectly . | . . . . Trap Hack Attempts . | . . . . Triggered . | . . . . Disarmed . | . . . . Reprogrammed . | . . . . Reused . | . . . . Traps Extracted . | . . . . Installed . | . . . . Triggered . | . . . . Objects Rigged 2 | . 1 1 . Machines | -11 -10 -9 -8 ---------- Run | Yrd Mat Mat Mat Machines Disabled 9 | . . 9 . Max in Single Turn 2 | . . 2 . Machines Repaired . | . . . . Machines Dismantled . | . . . . Machines Sabotaged . | . . . . Overloaded Fab Kills . | . . . . Hacking | -11 -10 -9 -8 --------- Run | Yrd Mat Mat Mat Machines Accessed 11 | . 2 4 5 Terminals 11 | . 2 4 5 Fabricators . | . . . . Repair Stations . | . . . . Recycling Units . | . . . . Scanalyzers . | . . . . Garrison Access . | . . . . Total Hacks 43 | . 6 19 18 Successful 21 | . 4 12 5 Failed 22 | . 2 7 13 Catastrophic 5 | . . 2 3 Database Lockouts . | . . . . Manual 40 | . 5 18 17 Terminals 43 | . 6 19 18 Fabricators . | . . . . Repair Stations . | . . . . Recycling Units . | . . . . Scanalyzers . | . . . . Garrison Access . | . . . . Terminal Hacks 4 | . 1 2 1 Alert Level 1 | . 1 . . Unreport Threat 1 | . . 1 . Zone Layout 2 | . . 1 1 Fabricator Hacks . | . . . . Repair Station Hacks . | . . . . Recycling Unit Hacks . | . . . . Scanalyzer . | . . . . Garrison Access Hacks . | . . . . Unauthorized Hacks 17 | . 3 10 4 Terminals 17 | . 3 10 4 Track 4 | . . 4 . Assimilate 5 | . 1 2 2 Botnet 6 | . 1 3 2 Detonate 2 | . 1 1 . Fabricators . | . . . . Repair Stations . | . . . . Recycling Units . | . . . . Scanalyzers . | . . . . Garrison Access . | . . . . Data Cores Recovered . | . . . . Used . | . . . . Hacking Detections 10 | . 2 3 5 Full Trace Events 8 | . 2 1 5 Feedback Events . | . . . . Feedback Blocked . | . . . . Robot Schematics Acquired . | . . . . Robots Built . | . . . . Authchips . | . . . . Time . | . . . . Total Robot Build Rating . | . . . . Part Schematics Acquired . | . . . . Parts Built . | . . . . Authchips . | . . . . Time . | . . . . Total Part Build Rating . | . . . . Parts Repaired . | . . . . Time . | . . . . Parts Recycled . | . . . . Recycled Matter . | . . . . Retrieved Matter . | . . . . Retrieved Components . | . . . . Parts Scanalyzed . | . . . . Part Schematics Acquired . | . . . . Parts Damaged . | . . . . Bothacking | -11 -10 -9 -8 ------------ Run | Yrd Mat Mat Mat Used RIF Installer . | . . . . Robots Hacked . | . . . . Non-combat . | . . . . Combat . | . . . . Robot Hacks Applied . | . . . . Relay Couplers Released . | . . . . Fabnet Peak Effective % . | . . . . Robots Rewired . | . . . . Allies Hacked . | . . . . Hacks Repelled . | . . . . Allies | -11 -10 -9 -8 -------- Run | Yrd Mat Mat Mat Total Allies . | . . . . Largest Group . | . . . . Highest-Rated Group . | . . . . Highest-Rated Ally . | . . . . Total Orders . | . . . . Ally Attacks . | . . . . Total Damage . | . . . . Kills . | . . . . Allies Corrupted . | . . . . Allies Melted . | . . . . Intel | -11 -10 -9 -8 ------- Run | Yrd Mat Mat Mat Robot Analysis Total . | . . . . Derelict Logs Recovered . | . . . . Drone Launches . | . . . . Drone Recoveries . | . . . . Exploration | -11 -10 -9 -8 ------------- Run | Yrd Mat Mat Mat Turns Passed 1256 | 113 268 578 297 Spaces Moved 1055 | 74 195 390 396 Core 56 | 11 . . 45 Treads . | . . . . Legs . | . . . . Wheels 664 | 63 195 390 16 Hover . | . . . . Flight 335 | . . . 335 Fastest Speed 37 | 50 100 100 37 Average Speed 86 | 92 100 104 61 Slowest Speed 600 | 100 100 130 600 Overloaded Moves . | . . . . Propulsion Burnouts . | . . . . Robots Hopped 6 | . . . 6 Cave-ins Triggered . | . . . . Exploration Rate (%) 28 | 5 39 31 40 Regions Visited 3 Branch Regions . Pre-discovered Areas . | . . . . Known Exits Taken . | . . . . Unknown Exits Taken 3 | 1 1 1 . Scrap Searched . | . . . . Spaces Dug . | . . . . Terrain Destroyed 142 | . 14 125 3 Melee . | . . . . Projectile 3 | . . . 3 AOE 139 | . 14 125 . Terrain Rammed . | . . . . Walls Destroyed . | . . . . Machines Disabled . | . . . . Actions | -11 -10 -9 -8 --------- Run | Yrd Mat Mat Mat Total 1272 | 102 233 497 440 Wait 79 | . 8 48 23 Move 1040 | 73 194 389 384 Hop 6 | . . . 6 Pick Up 30 | 13 2 14 1 Fast Attach 5 | . . . 5 Attach 21 | 7 1 8 5 Detach . | . . . . Swap 12 | . 3 7 2 Drop 14 | . 1 2 11 Fire 60 | 9 20 28 3 Melee . | . . . . Ram 5 | . 4 1 . Kick . | . . . . Crush . | . . . . Escape Stasis . | . . . . Rewire . | . . . . Trap . | . . . . Miscellaneous . | . . . . Route ------- -11/Scrapyard -10/Materials -9/Materials (discovered 2 exits: *Mat / [*Sto]) -8/Materials History --------- Turn | Location | Event 24 | -11/Scrapyard | Discovered new exit (range 15) 114 | -11/Scrapyard | Entered Materials 305 | -10/Materials | Build established: Mutant 344 | -10/Materials | Discovered new exit (range 5) 369 | -10/Materials | Core integrity fell below 50% 382 | -10/Materials | Entered another Materials area 382 | -9/Materials | Evolved 2 slots: Weapon x2 740 | -9/Materials | Discovered new exit (range 16) 861 | -9/Materials | Build established: Gunner 928 | -9/Materials | Discovered new exit (range 15) 960 | -9/Materials | Entered another Materials area 960 | -8/Materials | Evolved 2 slots: Power x1, Utility x1 1148 | -8/Materials | Lost 3 parts (1p2n) 1198 | -8/Materials | Core integrity fell below 50% 1233 | -8/Materials | Core integrity fell below 20% 1257 | -8/Materials | Destroyed by S-10 Pest with Light Assault Rifle Last Messages --------------- Acquired Prototype Flight Unit. Connecting with Terminal... >>Layout(Zone) Retrieving Zone 5A layout... Downloaded map data. >>Trojan(Botnet) Trojan loaded successfully. Testing... Terminal linked with 1 system. Awaiting botnet instructions. [Achievement: Hunted] Xenon Bombardment Thruster destroyed. Acquired 225 matter. Xenon Bombardment Thruster destroyed. S-10 Pest destroyed. R-06 Scavenger collects Flight Unit. Identified Imp. Flight Unit. Adv. ECM Suite destroyed. R-06 Scavenger collects Lgt. Ion Engine. Hvy. Particle Cannon destroyed. Map ----- +----------------------------------------------------+ | ??? ##########+######/#+## "" #?? | | ????????##????# # # #?? | | ????????????????? ???#"" = #???????????? | | ????????????????? ???#"Y |#???????????? | | ????????????????? ???#"" #???????????? | | ????????????????? ???# #???????????? | | ????????????????? ???# #???????????? | | ????????????????#/???#####+##???????????? | | ????????????????# ???????# #????????????? | | ????????????????# #??????# #????????????? | | ????????????????# #??????# #????????????? | | ???????#????????# #???#### #????????????? | | ????#### ######## #####"## #????????????? | | ??? ## == # #????????????? | | ??? ## == # #????????????? | | ?? ## = / #????????????? | | ?? %" #s#????????????? | | ?? /% #s#????????????? | | ?? #### # # #????????????? | | ?????????????# # # #???##???????? | | ?????????????# %=+##### #?## ###?????? | | ?????????????# * ss #? #?????? | | ?????????????# # """ #?????? | | ?????????????# # """ #?????? | | ?????????????# + """ #?????? | | ?????????????# @ # #?????? | | ?????????????############### ! ! #?????? | | ?????????????????????????????######?????? | | ????????????????????????????????????????? | | ????????????????????????????????????????? | | ????????????????????????????????????????? | | ????????????????????????????????????????? | | ????????????????????????????????????????? | | ????????????????????????????????????????? | | ????????????????????????????????????????? | | ????????????????????????????????????????? | | ????????????????????????????????????????? | | ????????????????????????????????????????? | | ????????????????????????????????????????? | | ????????????????????????????????????????? | | ????????????????????????????????????????? | | ????????????????????????????????????????? | | ????????????????????????????????????????? | | ????????????????????????????????????????? | | ????????????????????????????????????????? | | ????????????????????????????????????????? | | ????????????????????????????????????????? | | ????????????????????????????????????????? | | ????????????????????????????????????????? | | | +----------------------------------------------------+ Best States ------------- Heat Dissipation 41 Energy Generation 17 Energy Capacity 415 Matter Stores 300 Matter Capacity 300 Sight Range 16 Terrain Scan Range 16 Terrain Scan Density 85 ECM Strength 2 Evasion (%) 62 Item Schematics ----------------- None Robot Schematics ------------------ None Fabricated ------------ Nothing Alien Tech Used ----------------- None Achievements -------------- Hunted Party Time root@ Challenges ------------ None Game ------ Seed RagnarokWardronePick Manual? 0 Play Time 00:24:30 Cumulative 10.9 hours Start 2024.03.10 @ 21:42:09 End 2024.03.10 @ 22:07:50 Sessions 1 Manual Loads 0 Difficulty Rogue Special Mode None Game No. 26 Rogue 26 Adventurer 0 Explorer 0 Win Type - Total 0 Types 0/0/0/0/0/0/0/0/0 Lore% 16 Gallery% 17 Achievement% 14 Wizard Run 0 Options --------- Layout 1 ASCII 0 Keyboard 0 Movement Mouse Keybinds 0 Fullscreen 1 Font 16/Terminus Map View 25x20 Zoom Use 97% Tactical HUD 0 Map Filters NONE Filters NONE Steam 1 RUN: 14fa0ac1-5045-4b7e-b705-248eb1a99ad1